bitfinex/quotes_BTCUSD_20251016
["timestamp","ask_amount","ask_price","bid_price","bid_amount"]
[1760643778455,0.34498785,108220.0,108190.0,0.68459937]
[1760643778872,0.00498785,108220.0,108190.0,0.68459937]
[1760643779069,0.00498785,108220.0,108200.0,0.18483963]
[1760643779292,0.00498785,108220.0,108210.0,0.1081727]
[1760643779523,0.00498785,108220.0,108210.0,0.08969012]
[1760643780281,0.18979657,108220.0,108210.0,0.08969012]
[1760643780492,0.5058971,108220.0,108190.0,0.095]
[1760643780748,0.00498785,108220.0,108200.0,0.08969012]
[1760643780965,0.5058971,108220.0,108200.0,0.08969012]
[1760643781176,0.5058971,108220.0,108200.0,0.09069012]
[1760643781381,0.59557918,108220.0,108200.0,0.08969012]
[1760643781583,0.00498785,108220.0,108200.0,0.08969012]
[1760643782009,0.00498785,108220.0,108210.0,0.01848258]
[1760643783967,0.00498785,108220.0,108210.0,0.1081727]
[1760643784750,0.00498785,108220.0,108210.0,0.1091727]
[1760643784961,0.00498785,108220.0,108210.0,0.1081727]
[1760643785172,0.00498785,108220.0,108210.0,0.1091727]
[1760643785777,0.00498785,108220.0,108210.0,0.18465012]
[1760643786426,0.00498785,108220.0,108210.0,0.3879585]
[1760643786633,0.0001505,108220.0,108210.0,0.87038517]
[1760643786837,0.0001505,108220.0,108210.0,0.68555937]
[1760643787039,0.0001505,108220.0,108210.0,0.18465012]
[1760643787485,0.0001505,108220.0,108210.0,0.18365012]
[1760643787891,0.0001505,108220.0,108210.0,0.18565012]
[1760643788673,0.0001505,108220.0,108210.0,0.09169012]
[1760643788895,0.50105975,108220.0,108210.0,0.002]
[1760643789167,0.76369416,108220.0,108180.0,0.01839673]
[1760643789384,0.50090925,108200.0,108190.0,0.08969012]
[1760643789639,0.50090925,108200.0,108180.0,0.08969012]
[1760643789840,0.6857584,108200.0,108180.0,0.08969012]
[1760643790053,0.68577533,108190.0,108160.0,0.01839673]
[1760643790265,0.50090925,108180.0,108160.0,0.10808685]
[1760643790471,0.50090925,108180.0,108160.0,0.08969012]
[1760643790685,0.50090925,108180.0,108150.0,0.094]
[1760643790975,0.50090925,108170.0,108150.0,0.08973012]
[1760643791224,0.69503133,108180.0,108150.0,0.08973012]
[1760643791427,0.50090925,108160.0,108150.0,0.08988068]
[1760643791859,0.0292487,108170.0,108150.0,0.08988068]
[1760643792065,0.53412092,108180.0,108150.0,0.09088068]
[1760643792283,0.53412092,108180.0,108150.0,0.00119056]
[1760643792284,0.50090925,108170.0,108150.0,0.00119056]
[1760643792483,0.50090925,108170.0,108150.0,0.00019056]
[1760643792685,0.50090925,108170.0,108150.0,0.00119056]
[1760643793512,0.36797876,108180.0,108150.0,0.00119056]
[1760643793937,0.50090925,108170.0,108150.0,0.00119056]
[1760643794112,0.50090925,108170.0,108120.0,0.71352966]
[1760643794331,0.50090925,108170.0,108130.0,0.18365012]
[1760643794332,0.50090925,108160.0,108130.0,0.18365012]
[1760643794493,0.50090925,108160.0,108130.0,0.36861241]
[1760643794707,0.50090925,108160.0,108150.0,0.001]
[1760643794933,0.50105967,108170.0,108140.0,0.01849454]
[1760643795133,0.50105967,108170.0,108140.0,0.10818466]
[1760643795319,0.50105967,108170.0,108140.0,0.2931294]
[1760643795544,0.00015042,108170.0,108140.0,0.28387081]
[1760643795707,0.00015042,108170.0,108150.0,0.18592731]
[1760643795907,0.00015042,108170.0,108160.0,0.01849112]
[1760643796139,0.00015042,108170.0,108150.0,0.08969012]
[1760643797175,0.00015042,108170.0,108150.0,0.29311031]
[1760643797387,0.00015042,108170.0,108150.0,0.274616]
[1760643797591,0.00015042,108170.0,108150.0,0.08969012]
[1760643797798,0.00015042,108170.0,108150.0,0.09069012]
[1760643798005,0.50105967,108170.0,108150.0,0.09069012]
[1760643798208,0.59074175,108170.0,108150.0,0.09069012]
[1760643798824,0.50105967,108170.0,108150.0,0.09069012]
[1760643799091,0.00015042,108170.0,108150.0,0.09069012]
[1760643799310,0.50105967,108170.0,108150.0,0.09069012]
[1760643799715,0.50105967,108170.0,108150.0,0.001]
[1760643800006,0.50090925,108160.0,108150.0,0.001]
[1760643800215,0.50105967,108170.0,108150.0,0.001]
[1760643800437,0.775636,108170.0,108150.0,0.001]
[1760643800862,0.50090925,108160.0,108150.0,0.001]
[1760643801718,0.61854819,108170.0,108130.0,0.28817011]
[1760643801934,0.61854819,108170.0,108150.0,0.001]
[1760643802545,0.52886611,108170.0,108150.0,0.001]
[1760643803514,0.71376025,108170.0,108150.0,0.001]
[1760643803803,0.6858252,108160.0,108140.0,0.08969012]
[1760643804020,0.50090925,108150.0,108130.0,0.001]
[1760643804231,0.50090925,108150.0,108130.0,0.08969012]
[1760643805675,0.50090925,108160.0,108130.0,0.09069012]
[1760643805880,0.50090925,108160.0,108130.0,0.10918637]
[1760643806516,0.50090925,108160.0,108130.0,0.09069012]
[1760643806925,0.68582093,108160.0,108130.0,0.08969012]
[1760643807600,0.68582063,108160.0,108130.0,0.08969012]
[1760643807791,0.68585559,108140.0,108100.0,0.11243673]
[1760643807998,0.84090925,108140.0,108110.0,0.08969012]
[1760643808415,1.0421603,108140.0,108110.0,0.08969012]
[1760643808626,0.50090925,108120.0,108110.0,0.08969012]
[1760643808831,0.50090925,108120.0,108100.0,0.27905123]
[1760643809044,0.50090925,108130.0,108100.0,0.36874135]
[1760643809253,0.34,108130.0,108110.0,0.10113961]
[1760643809465,0.35839673,108150.0,108120.0,0.18497678]
[1760643809683,0.38620882,108150.0,108130.0,0.01744012]
[1760643809887,0.01839673,108150.0,108130.0,0.20345222]
[1760643810140,0.01839673,108170.0,108140.0,0.18493171]
[1760643810141,0.52871917,108160.0,108140.0,0.18493171]
[1760643810356,0.51930598,108170.0,108150.0,0.20340936]
[1760643810566,0.01839673,108170.0,108160.0,0.01849112]
[1760643810783,0.01839673,108170.0,108150.0,0.08969012]
[1760643810993,0.50090925,108170.0,108150.0,0.08969012]
[1760643811699,0.86524564,108180.0,108150.0,0.10267111]
[1760643811913,0.86524564,108180.0,108150.0,0.29310801]
[1760643811914,0.00015042,108170.0,108150.0,0.29310801]
[1760643812121,0.00015042,108170.0,108150.0,0.27461719]
[1760643812548,0.00015042,108170.0,108150.0,0.08969012]
[1760643812775,0.00015042,108170.0,108150.0,0.10818295]
[1760643812987,0.50105967,108170.0,108150.0,0.08969012]
[1760643813211,0.5832618,108170.0,108150.0,0.27461519]
[1760643813430,0.00015042,108170.0,108160.0,0.01385437]
[1760643813847,0.00015042,108170.0,108150.0,0.08969012]
[1760643814080,0.00015042,108170.0,108150.0,0.27561503]
[1760643814280,0.00015042,108170.0,108150.0,0.08969012]
[1760643814491,0.00015042,108170.0,108160.0,0.001]
[1760643814701,0.00015042,108170.0,108150.0,0.08969012]
[1760643815153,0.00015042,108170.0,108150.0,0.09069012]
[1760643815384,0.00015042,108170.0,108150.0,0.27561751]
[1760643815599,0.00015042,108170.0,108160.0,0.27460136]
[1760643816033,0.00015042,108170.0,108160.0,0.36860136]
[1760643816693,0.00015042,108170.0,108160.0,0.36960136]
[1760643816901,0.00015042,108170.0,108160.0,0.87051061]
[1760643817336,0.00015042,108170.0,108160.0,0.86951061]
[1760643817776,0.00015042,108170.0,108160.0,0.87051061]
[1760643818216,0.00015042,108170.0,108160.0,1.21051061]
[1760643818425,0.00015042,108170.0,108160.0,1.71141986]
[1760643819357,0.00015042,108170.0,108160.0,1.74760214]
[1760643819777,0.00015042,108170.0,108160.0,1.74660214]
[1760643820208,0.00015042,108170.0,108160.0,1.74860214]
[1760643820410,0.00015042,108170.0,108160.0,1.74660214]
[1760643820840,0.00015042,108170.0,108160.0,1.74860214]
[1760643822328,0.00015042,108170.0,108160.0,1.15369289]
[1760643822507,0.00015042,108170.0,108160.0,1.24765289]
[1760643822749,0.00015042,108170.0,108160.0,0.96878165]
[1760643822964,0.00015042,108170.0,108160.0,0.71056136]
[1760643823221,0.00015042,108170.0,108160.0,1.21147061]
[1760643823437,0.00015042,108170.0,108160.0,0.70856136]
[1760643823648,0.00015042,108170.0,108160.0,0.42969012]
[1760643823859,0.00015042,108170.0,108160.0,0.27660136]
[1760643824076,0.00015042,108170.0,108160.0,0.08969012]
[1760643824531,0.95964984,108170.0,108160.0,0.001]
[1760643824739,1.4255142,108170.0,108160.0,0.001]
[1760643824956,1.26842841,108170.0,108160.0,0.001]
[1760643825406,1.45332255,108170.0,108160.0,0.001]
[1760643825633,1.47296209,108170.0,108160.0,0.001]
[1760643825862,6.07859084,108170.0,108160.0,0.001]
[1760643826079,0.19418485,108150.0,108120.0,0.01839673]
[1760643826294,0.77460528,108140.0,108120.0,0.01839673]
[1760643826512,0.77460528,108140.0,108100.0,0.21596643]
[1760643826745,0.77460528,108140.0,108110.0,0.08969012]
[1760643827625,0.34,108140.0,108110.0,0.08969012]
[1760643827852,0.77460528,108140.0,108110.0,0.08969012]
[1760643828071,0.79977101,108140.0,108110.0,0.08969012]
[1760643828936,0.02516573,108140.0,108110.0,0.08969012]
[1760643829375,0.28387562,108140.0,108110.0,0.08969012]
[1760643829622,1.01032023,108150.0,108110.0,0.08969012]
[1760643829864,0.77460528,108140.0,108110.0,0.08969012]
[1760643830081,1.01032023,108150.0,108110.0,0.42969012]
[1760643830309,0.7994425,108140.0,108110.0,0.42969012]
[1760643830554,0.81078756,108150.0,108120.0,0.01849796]
[1760643830819,0.79915593,108150.0,108110.0,0.62393067]
[1760643831056,0.02455065,108150.0,108120.0,0.01849796]
[1760643831300,0.06073293,108150.0,108120.0,0.01849796]
[1760643831530,0.03618228,108150.0,108120.0,0.01849796]
[1760643832283,1.13300201,108160.0,108120.0,0.20347466]
[1760643832519,0.00924641,108150.0,108120.0,0.01849796]
[1760643833000,1.14224757,108160.0,108120.0,0.19708014]
[1760643833274,1.317914,108160.0,108120.0,0.10818808]
[1760643833528,0.19417826,108150.0,108120.0,0.10818808]
[1760643833766,0.28386034,108150.0,108120.0,0.08969012]
[1760643834001,0.77460528,108140.0,108110.0,0.09396]
[1760643834204,0.28386034,108150.0,108110.0,0.18365012]
[1760643834421,1.05846562,108150.0,108110.0,0.08969012]
[1760643834877,1.08627871,108150.0,108110.0,0.08969012]
[1760643835086,0.99659663,108150.0,108110.0,0.08969012]
[1760643835501,0.80241837,108150.0,108110.0,0.08969012]
[1760643835709,0.99659313,108150.0,108110.0,0.08969012]
[1760643835895,0.99659734,108150.0,108110.0,0.08969012]
[1760643836719,0.22199206,108150.0,108110.0,0.08969012]
[1760643837882,0.22199206,108150.0,108120.0,0.01198874]
[1760643838802,0.2581705,108150.0,108120.0,0.01198874]
[1760643839006,0.2581705,108150.0,108110.0,0.08969012]
[1760643840457,0.19419286,108140.0,108110.0,0.08969012]
[1760643840664,1.12245786,108150.0,108110.0,0.08969012]
[1760643841095,1.03277578,108150.0,108110.0,0.10818979]
[1760643841311,0.24892441,108150.0,108110.0,0.88279507]
[1760643841519,0.25817082,108150.0,108110.0,0.8642954]
[1760643841739,0.02781309,108150.0,108120.0,0.201437]
[1760643841977,1.17679956,108160.0,108130.0,0.96881358]
[1760643841978,0.04259412,108160.0,108130.0,0.96881358]
[1760643842207,0.01839673,108160.0,108140.0,0.01849454]
[1760643842427,0.02795833,108170.0,108140.0,1.07697988]
[1760643842644,0.00015042,108170.0,108140.0,0.18365012]
[1760643842857,0.19428982,108170.0,108140.0,0.08969012]
[1760643843067,0.0898325,108170.0,108140.0,0.08969012]
[1760643843485,0.27472679,108170.0,108140.0,0.08969012]
[1760643843917,1.05857677,108170.0,108130.0,0.34]
[1760643844122,1.05857677,108170.0,108130.0,0.52365012]
[1760643844552,0.19428941,108170.0,108130.0,0.52365012]
[1760643845020,0.19428941,108170.0,108140.0,0.01820998]
[1760643845230,0.19428941,108170.0,108140.0,0.01757549]
[1760643845645,0.00015042,108170.0,108140.0,0.01757549]
[1760643845885,0.19428927,108170.0,108130.0,1.2982554]
[1760643846140,0.19415985,108160.0,108130.0,0.52365012]
[1760643846354,0.96889455,108170.0,108130.0,0.52365012]
[1760643846775,0.19415831,108160.0,108130.0,0.42969012]
[1760643846986,0.19428927,108170.0,108130.0,0.42969012]
[1760643847196,0.19415768,108160.0,108130.0,0.42969012]
[1760643847416,0.19418004,108150.0,108100.0,0.02768742]
[1760643847604,0.19418004,108150.0,108110.0,0.10818979]
[1760643847854,0.00924641,108150.0,108110.0,0.3963954]
[1760643848064,0.19417581,108150.0,108110.0,0.18365012]
[1760643848277,0.19417581,108150.0,108110.0,0.97348414]
[1760643848482,0.28385789,108150.0,108110.0,0.42969012]
[1760643848709,0.28385789,108150.0,108110.0,0.52365012]
[1760643849119,1.05846317,108150.0,108110.0,0.52365012]
[1760643849991,0.19419558,108140.0,108110.0,0.08969012]
[1760643850204,0.18494628,108140.0,108110.0,0.08969012]
[1760643850404,0.27462836,108140.0,108110.0,0.08969012]
[1760643851025,0.19417581,108150.0,108110.0,0.08969012]
[1760643851227,0.19417581,108150.0,108110.0,0.87921289]
[1760643851455,0.19417581,108150.0,108110.0,0.08969012]
[1760643851663,0.52492878,108150.0,108110.0,1.07703312]
[1760643851865,0.52492878,108150.0,108110.0,1.05853345]
[1760643852504,0.05457901,108160.0,108130.0,0.00924812]
[1760643852727,0.01839673,108160.0,108130.0,1.0585036]
[1760643852939,0.01839673,108160.0,108130.0,0.8642954]
[1760643853147,0.22365321,108160.0,108130.0,0.08969012]
[1760643853356,0.96876282,108160.0,108130.0,0.08969012]
[1760643853819,0.19415754,108160.0,108130.0,0.10818637]
[1760643854435,0.55398496,108170.0,108130.0,0.29314786]
[1760643854612,0.55398496,108170.0,108130.0,0.08969012]
[1760643854844,0.64366704,108170.0,108130.0,0.10351186]
[1760643855072,0.35984243,108170.0,108130.0,1.06774955]
[1760643855288,0.01984243,108170.0,108140.0,0.8642954]
[1760643855498,0.00015042,108170.0,108140.0,0.08969012]
[1760643855716,0.00015042,108170.0,108150.0,0.79309811]
[1760643855928,0.00015042,108170.0,108150.0,0.77460528]
[1760643856139,0.00015042,108170.0,108160.0,0.08969012]
[1760643856361,0.00015042,108170.0,108150.0,0.42969012]
[1760643856782,0.00015042,108170.0,108160.0,0.01841303]
[1760643856995,0.00015042,108170.0,108150.0,1.2042954]
[1760643857250,0.00015042,108170.0,108150.0,0.42969012]
[1760643858570,0.00015042,108170.0,108150.0,0.08969012]
[1760643858781,0.00015042,108170.0,108150.0,0.10918295]
[1760643858993,0.00015042,108170.0,108150.0,0.08969012]
[1760643859205,0.00939512,108170.0,108130.0,0.09396]
[1760643859427,0.28397527,108170.0,108150.0,0.001]
[1760643859642,0.28397527,108170.0,108140.0,0.08969012]
[1760643859643,0.18504575,108170.0,108140.0,0.08969012]
[1760643859863,0.00015042,108170.0,108140.0,0.10462786]
[1760643860078,0.18504566,108170.0,108140.0,0.10462786]
[1760643860290,0.18504566,108170.0,108140.0,0.08969012]
[1760643860709,0.18504566,108170.0,108140.0,0.10255411]
[1760643860915,0.18504566,108170.0,108140.0,0.08969012]
[1760643861356,0.18504566,108170.0,108140.0,0.10580536]
[1760643861837,0.00015042,108170.0,108140.0,0.10580536]
[1760643862058,0.18504494,108170.0,108140.0,0.08969012]
[1760643862913,0.18491211,108160.0,108140.0,0.08969012]
[1760643863133,0.18492834,108150.0,108110.0,0.77460528]
[1760643863349,0.19417532,108150.0,108120.0,0.42969012]
[1760643863575,0.19415767,108160.0,108120.0,0.52365012]
[1760643863782,0.19415767,108160.0,108130.0,0.01849625]
[1760643863783,0.28383975,108160.0,108130.0,0.01849625]
[1760643864440,0.18491296,108160.0,108130.0,0.10818637]
[1760643864650,0.32204946,108170.0,108130.0,0.10818637]
[1760643864874,0.21268637,108170.0,108130.0,0.10818637]
[1760643865088,0.19415692,108160.0,108130.0,0.08969012]
[1760643865754,0.19415692,108160.0,108130.0,0.18365012]
[1760643865968,0.20344189,108170.0,108140.0,0.10450261]
[1760643866178,0.01854715,108170.0,108140.0,0.10450261]
[1760643866389,0.2034504,108170.0,108140.0,0.10450261]
[1760643866607,0.18491524,108160.0,108140.0,0.08969012]
[1760643867467,0.18492834,108150.0,108140.0,0.08969012]
[1760643867678,0.22467627,108160.0,108120.0,0.34]
[1760643867679,0.23392183,108160.0,108120.0,0.34]
[1760643867924,0.23392183,108160.0,108130.0,0.18361012]
[1760643867925,0.1941608,108160.0,108130.0,0.18361012]
[1760643868136,1.00698827,108170.0,108140.0,0.01585199]
[1760643868345,0.18491278,108160.0,108140.0,0.01585199]
[1760643868580,0.19415834,108160.0,108130.0,0.08969012]
[1760643868781,0.18491127,108160.0,108140.0,0.01406924]
[1760643869026,0.18491127,108160.0,108140.0,0.01506924]
[1760643869250,0.2126951,108170.0,108140.0,0.01406924]
[1760643869887,0.18491243,108160.0,108140.0,0.01406924]
[1760643870125,0.00015042,108170.0,108150.0,0.08969012]
[1760643870336,0.00015042,108170.0,108160.0,0.01849112]
[1760643870551,0.00015042,108170.0,108160.0,0.10818124]
[1760643870766,0.00015042,108170.0,108160.0,0.88278652]
[1760643870972,0.03633949,108190.0,108160.0,0.8642954]
[1760643871187,0.01491265,108190.0,108170.0,0.01848941]
[1760643871608,0.19419782,108190.0,108160.0,0.18461012]
[1760643872231,0.19419782,108190.0,108160.0,0.18361012]
[1760643872450,0.25664933,108190.0,108160.0,0.18361012]
[1760643873104,0.21585143,108190.0,108160.0,0.18361012]
[1760643873319,0.02174637,108190.0,108160.0,0.18361012]
[1760643873533,0.19419624,108190.0,108160.0,0.18361012]
[1760643873745,0.21633402,108190.0,108160.0,0.9582154]
[1760643873954,0.21633402,108190.0,108160.0,0.8642954]
[1760643874164,0.21633402,108190.0,108160.0,0.9582154]
[1760643874589,0.21633402,108190.0,108160.0,0.9592154]
[1760643875006,0.21633402,108190.0,108160.0,0.18461012]
[1760643875213,0.29137593,108190.0,108160.0,0.18461012]
[1760643875423,0.29137593,108190.0,108160.0,0.18361012]
[1760643875881,0.20709095,108190.0,108160.0,0.18361012]
[1760643876056,0.20709095,108190.0,108160.0,0.08969012]
[1760643876260,0.20709095,108190.0,108160.0,0.18361012]
[1760643876553,0.20709075,108190.0,108160.0,0.18361012]
[1760643877403,0.2070927,108190.0,108160.0,0.18361012]
[1760643878002,0.09634832,108190.0,108160.0,0.18361012]
[1760643878209,0.28120971,108190.0,108160.0,0.18361012]
[1760643879793,0.09634832,108190.0,108160.0,0.18361012]
[1760643880004,0.02223054,108190.0,108160.0,0.18361012]
[1760643880221,9.276e-05,108190.0,108160.0,0.18361012]
[1760643880431,9.276e-05,108190.0,108170.0,0.10817953]
[1760643880841,0.18495356,108190.0,108170.0,0.08969012]
[1760643881453,9.276e-05,108190.0,108170.0,0.08969012]
[1760643881656,9.276e-05,108190.0,108170.0,0.09069012]
[1760643882509,0.00259345,108190.0,108170.0,0.09069012]
[1760643884310,0.00259345,108190.0,108170.0,0.10231736]
[1760643885164,0.00259345,108190.0,108180.0,0.86852528]
[1760643885378,0.00259345,108190.0,108180.0,0.9582154]
[1760643885599,0.00259345,108190.0,108180.0,0.68409281]
[1760643886218,0.00259345,108190.0,108180.0,0.66509281]
[1760643886437,0.00259345,108190.0,108180.0,0.84996986]
[1760643886647,0.00259345,108190.0,108180.0,0.85096986]
[1760643887031,0.00259345,108190.0,108180.0,1.19096986]
[1760643887248,0.00259345,108190.0,108180.0,1.18996986]
[1760643887597,0.00259345,108190.0,108180.0,1.19096986]
[1760643889294,0.00259345,108190.0,108180.0,1.18996986]
[1760643889512,0.00259345,108190.0,108180.0,1.19196986]
[1760643890148,0.50259345,108190.0,108180.0,1.19196986]
[1760643895096,0.50259345,108190.0,108180.0,1.11704986]
[1760643895263,0.50259345,108190.0,108180.0,1.21092986]
[1760643899510,0.50259345,108190.0,108180.0,0.71044717]
[1760643899722,0.50259345,108190.0,108180.0,0.09169012]
[1760643900126,0.50259345,108190.0,108180.0,0.87088986]
[1760643900502,0.50259345,108190.0,108180.0,1.21088986]
[1760643900703,0.50259345,108190.0,108180.0,0.52553012]
[1760643900916,0.50259345,108190.0,108180.0,0.71040717]
[1760643901124,0.50259345,108190.0,108180.0,1.21088986]
[1760643902029,0.50259345,108190.0,108180.0,1.20888986]
[1760643902284,0.50259345,108190.0,108180.0,1.20988986]
[1760643902511,0.50259345,108190.0,108180.0,1.20888986]
[1760643902994,0.50259345,108190.0,108180.0,1.21088986]
[1760643903216,0.25879868,108190.0,108180.0,1.21088986]
[1760643904666,0.25879868,108190.0,108180.0,1.02601281]
[1760643904871,0.25879868,108190.0,108180.0,0.09169012]
[1760643905081,0.25879868,108190.0,108180.0,0.08969012]
[1760643905236,0.25879868,108190.0,108180.0,0.18353012]
[1760643905448,0.25879868,108190.0,108180.0,0.09069012]
[1760643905653,0.25879868,108190.0,108180.0,0.18353012]
[1760643905851,0.25879868,108190.0,108180.0,0.08969012]
[1760643906022,0.25879868,108190.0,108180.0,0.09069012]
[1760643906236,0.25879868,108190.0,108180.0,0.79353756]
[1760643906480,0.25879868,108190.0,108180.0,0.77504986]
[1760643906680,0.25879868,108190.0,108180.0,0.77604986]
[1760643906883,0.25879868,108190.0,108180.0,1.11504986]
[1760643907832,0.25879868,108190.0,108180.0,1.15123214]
[1760643908037,0.0982102,108190.0,108180.0,1.15123214]
[1760643908270,0.0982102,108190.0,108180.0,1.65171483]
[1760643908512,0.0982102,108190.0,108180.0,1.65271483]
[1760643908733,0.0982102,108190.0,108180.0,1.15123214]
[1760643908946,0.0982102,108190.0,108180.0,1.65371483]
[1760643909178,0.01839673,108220.0,108210.0,1.02530849]
[1760643909395,0.01839673,108220.0,108210.0,1.24502089]
[1760643909615,0.0002,108240.0,108230.0,0.18479164]
[1760643909843,0.00035051,108240.0,108230.0,0.86880445]
[1760643910290,0.00035051,108240.0,108230.0,0.89049804]
[1760643910509,0.00035051,108240.0,108230.0,1.42716301]
[1760643911175,0.03831344,108300.0,108260.0,0.00923702]
[1760643911400,0.03831344,108300.0,108270.0,0.08969012]
[1760643911401,0.01839673,108280.0,108270.0,0.08969012]
[1760643911630,0.21280573,108300.0,108270.0,0.59017281]
[1760643911850,0.01889854,108300.0,108270.0,0.61125726]
[1760643912060,0.01889854,108300.0,108280.0,0.01847063]
[1760643912290,0.00050181,108300.0,108280.0,0.10816075]
[1760643912513,0.20643349,108300.0,108280.0,0.10816075]
[1760643912724,0.20643349,108300.0,108280.0,0.08969012]
[1760643913157,0.00050181,108300.0,108280.0,0.08969012]
[1760643913377,0.18517653,108300.0,108280.0,0.18353012]
[1760643914293,0.18517653,108300.0,108280.0,0.08969012]
[1760643914294,0.18468926,108290.0,108280.0,0.08969012]
[1760643914490,0.19392372,108290.0,108270.0,0.09384]
[1760643914747,0.19392372,108290.0,108270.0,0.08969012]
[1760643914969,0.19392372,108290.0,108280.0,0.001]
[1760643915190,0.18472364,108270.0,108240.0,0.01839673]
[1760643915419,0.69440641,108290.0,108250.0,0.68397281]
[1760643915648,0.18468979,108290.0,108260.0,0.51895673]
[1760643915889,0.18470795,108280.0,108260.0,0.08969012]
[1760643916122,0.73684453,108290.0,108260.0,0.08969012]
[1760643916349,0.22712752,108290.0,108260.0,0.10199124]
[1760643916565,0.23636198,108290.0,108260.0,0.08969012]
[1760643916796,0.23636198,108290.0,108260.0,0.10199424]
[1760643917023,0.19392439,108290.0,108260.0,0.10816416]
[1760643917252,0.19392439,108290.0,108260.0,0.60864685]
[1760643917503,0.19392439,108290.0,108260.0,0.59017281]
[1760643917727,0.19392439,108290.0,108260.0,0.08969012]
[1760643917951,0.19392439,108290.0,108260.0,0.10429449]
[1760643918192,0.23690579,108290.0,108260.0,0.10429449]
[1760643918419,0.18470691,108280.0,108260.0,0.08969012]
[1760643918862,0.19399417,108260.0,108230.0,0.50048269]
[1760643919084,0.6851896,108280.0,108230.0,0.50048269]
[1760643919085,0.50048269,108280.0,108240.0,0.20081773]
[1760643919336,0.10513623,108280.0,108240.0,0.86874731]
[1760643919610,0.2123211,108290.0,108250.0,0.50048269]
[1760643919813,0.04617104,108290.0,108260.0,0.59017281]
[1760643920020,0.23136278,108290.0,108260.0,0.59017281]
[1760643920255,0.23136278,108290.0,108260.0,0.08969012]
[1760643920497,0.02827612,108290.0,108260.0,0.20709226]
[1760643920714,0.00050181,108290.0,108270.0,0.68520405]
[1760643920932,0.00050181,108290.0,108280.0,0.08969012]
[1760643922103,0.00050181,108290.0,108280.0,0.09069012]
[1760643922792,0.18519107,108290.0,108280.0,0.001]
[1760643923880,0.68567376,108290.0,108280.0,0.001]
[1760643924314,0.00050181,108290.0,108280.0,0.001]
[1760643924530,0.1851919,108290.0,108260.0,0.50048269]
[1760643924749,0.1851919,108290.0,108260.0,0.18349012]
[1760643924971,0.19442636,108290.0,108260.0,0.18349012]
[1760643925221,0.18470749,108280.0,108260.0,0.08969012]
[1760643925448,0.18470749,108280.0,108230.0,0.50048269]
[1760643925449,0.18474593,108260.0,108230.0,0.50048269]
[1760643925674,0.18474126,108260.0,108220.0,0.70368663]
[1760643925899,0.18474212,108260.0,108230.0,0.10691986]
[1760643926123,0.69444222,108270.0,108230.0,0.18345012]
[1760643926315,0.18474157,108260.0,108230.0,0.18345012]
[1760643926565,0.08968208,108270.0,108240.0,0.10816757]
[1760643926789,0.25971733,108280.0,108240.0,0.60865026]
[1760643927007,0.230886,108280.0,108240.0,0.08969012]
[1760643927229,0.20310438,108280.0,108260.0,0.001]
[1760643927453,0.19395953,108270.0,108240.0,0.42969012]
[1760643927664,0.18474076,108260.0,108240.0,0.42969012]
[1760643927884,0.18474076,108260.0,108240.0,0.08969012]
[1760643928114,0.1847575,108250.0,108240.0,0.08969012]
[1760643928351,0.68522345,108260.0,108240.0,0.08969012]
[1760643928581,0.77314175,108260.0,108240.0,0.08969012]
[1760643929323,9.27e-05,108260.0,108240.0,0.08969012]
[1760643929552,9.27e-05,108260.0,108250.0,0.01847575]
[1760643929775,9.27e-05,108260.0,108250.0,1.11493031]
[1760643930233,9.27e-05,108260.0,108250.0,1.15111259]
[1760643930689,9.27e-05,108260.0,108250.0,0.93017281]
[1760643930909,9.27e-05,108260.0,108250.0,1.20969031]
[1760643931131,9.27e-05,108260.0,108250.0,0.52345012]
[1760643931356,9.27e-05,108260.0,108250.0,0.43169012]
[1760643931590,9.27e-05,108260.0,108250.0,0.70820762]
[1760643932035,9.27e-05,108260.0,108250.0,0.71020762]
[1760643932484,9.27e-05,108260.0,108250.0,0.52545012]
[1760643932727,9.27e-05,108260.0,108250.0,0.18545012]
[1760643933545,9.27e-05,108260.0,108250.0,0.09169012]
[1760643935372,9.27e-05,108260.0,108250.0,0.11016587]
[1760643935805,9.27e-05,108260.0,108250.0,0.61064856]
[1760643936018,9.27e-05,108260.0,108250.0,0.09169012]
[1760643936234,9.27e-05,108260.0,108250.0,0.11016587]
[1760643936455,9.27e-05,108260.0,108250.0,0.61064856]
[1760643936652,9.27e-05,108260.0,108250.0,0.59217281]
[1760643936923,9.27e-05,108260.0,108250.0,0.09169012]
[1760643937109,9.27e-05,108260.0,108250.0,0.29492337]
[1760643937349,9.27e-05,108260.0,108250.0,0.09169012]
[1760643937567,9.27e-05,108260.0,108250.0,0.29492337]
[1760643937825,9.27e-05,108260.0,108250.0,1.11693031]
[1760643938031,9.27e-05,108260.0,108250.0,1.11693031]
[1760643939899,9.27e-05,108260.0,108250.0,1.15311259]
[1760643940115,9.27e-05,108260.0,108250.0,0.6526299]
[1760643940371,0.01839673,108280.0,108260.0,0.34]
[1760643940556,0.01839673,108280.0,108270.0,0.08969012]
[1760643940557,0.01889818,108280.0,108270.0,0.08969012]
[1760643940775,0.01889818,108280.0,108270.0,0.18345012]
[1760643940988,0.00050145,108280.0,108270.0,0.18345012]
[1760643941415,0.00050145,108280.0,108250.0,0.52475742]
[1760643941648,0.00050145,108280.0,108260.0,0.79438699]
[1760643941850,0.00050145,108280.0,108260.0,0.77591295]
[1760643942486,0.00050145,108280.0,108270.0,0.61848337]
[1760643942707,0.00050145,108280.0,108270.0,0.70817349]
[1760643942922,0.00050145,108280.0,108270.0,0.52445012]
[1760643943140,0.00050145,108280.0,108270.0,0.70917349]
[1760643943345,0.00050145,108280.0,108270.0,1.20865618]
[1760643943999,0.00050145,108280.0,108270.0,0.70817349]
[1760643944267,0.00050145,108280.0,108270.0,0.52445012]
[1760643944480,0.68828785,108310.0,108270.0,0.70917293]
[1760643944694,0.7859069,108310.0,108280.0,0.08969012]
[1760643944912,0.19718828,108310.0,108280.0,0.08969012]
[1760643945121,0.69767097,108310.0,108280.0,0.08969012]
[1760643945579,0.00015037,108310.0,108280.0,0.08969012]
[1760643945795,0.00015037,108310.0,108280.0,0.09900361]
[1760643946014,0.18480744,108310.0,108280.0,0.08969012]
[1760643946236,0.50048269,108300.0,108280.0,0.08969012]
[1760643946452,0.2713716,108310.0,108280.0,0.08969012]
[1760643946665,0.18480559,108310.0,108280.0,0.10816075]
[1760643946877,0.68528828,108310.0,108280.0,0.10816075]
[1760643947082,0.68528828,108310.0,108280.0,0.10319486]
[1760643947310,0.68515491,108300.0,108280.0,0.09069012]
[1760643947532,0.18467222,108300.0,108280.0,0.08969012]
[1760643947755,1.0551507,108310.0,108280.0,0.08969012]
[1760643948181,0.18467732,108300.0,108280.0,0.08969012]
[1760643948395,0.95785371,108300.0,108280.0,0.08969012]
[1760643948606,0.28197431,108310.0,108280.0,0.08969012]
[1760643948813,0.77317639,108300.0,108280.0,0.08969012]
[1760643949647,0.95784982,108300.0,108280.0,0.10809959]
[1760643949864,0.95784982,108300.0,108280.0,0.08969012]
[1760643950083,0.18467343,108300.0,108280.0,0.08969012]
[1760643950301,0.77317639,108300.0,108280.0,0.08969012]
[1760643950524,0.95784881,108300.0,108280.0,0.08969012]
[1760643950737,0.18468926,108290.0,108280.0,0.08969012]